bitfinex/quotes_ETHUSD_20240717
["timestamp","ask_amount","ask_price","bid_price","bid_amount"]
[1721248706620,0.18580383,3426.3,3426.0,2.3274]
[1721248708178,0.18580383,3426.3,3426.1,1.041]
[1721248708456,2.91842,3426.5,3426.1,1.041]
[1721248708457,2.91842,3426.5,3426.2,2.2639]
[1721248710725,2.91836,3426.6,3426.2,2.2639]
[1721248712543,2.91843,3426.5,3426.2,2.2639]
[1721248713329,2.91826,3426.7,3426.2,2.2639]
[1721248713556,2.91826,3426.7,3426.3,0.7144393]
[1721248714463,2.9181,3426.9,3426.3,0.7144393]
[1721248714670,7.31,3427.1,3426.7,1.041]
[1721248714848,7.31,3427.1,3426.8,2.3805]
[1721248715163,10.22793,3427.1,3426.8,2.3805]
[1721248715475,7.31,3427.1,3426.8,3.014491]
[1721248716166,7.31,3427.1,3426.9,1.041]
[1721248716733,7.31,3427.1,3427.0,5.3052]
[1721248720146,2.91737,3427.8,3427.1,2.91788]
[1721248720347,2.91737,3427.8,3427.2,1.041]
[1721248720547,2.91737,3427.8,3427.2,1.967415]
[1721248725353,5.83476,3427.8,3427.2,1.967415]
[1721248725545,2.91737,3427.8,3427.2,1.967415]
[1721248726157,2.9174,3427.8,3427.2,1.967415]
[1721248726355,2.91743,3427.7,3427.2,1.967415]
[1721248726745,2.91743,3427.7,3427.3,0.7272495]
[1721248727077,2.91743,3427.7,3427.2,1.967415]
[1721248727653,5.83491,3427.7,3427.2,1.967415]
[1721248727979,2.91767,3427.4,3427.0,2.3872]
[1721248728177,2.91775,3427.3,3426.8,1.041]
[1721248735375,0.18596887,3427.2,3426.8,1.041]
[1721248735563,2.91775,3427.3,3426.8,1.041]
[1721248735883,0.18596887,3427.1,3426.8,1.041]
[1721248736179,0.18596887,3427.0,3426.8,1.955193]
[1721248736386,2.91775,3427.3,3426.8,1.955193]
[1721248736549,0.18596887,3426.9,3426.8,1.955193]
[1721248736755,2.91775,3427.3,3426.8,1.955193]
[1721248736963,0.18596887,3426.9,3426.8,1.041]
[1721248737162,2.91775,3427.3,3426.8,1.041]
[1721248737483,0.18610335,3426.9,3426.8,1.041]
[1721248737697,2.91775,3427.3,3426.8,1.041]
[1721248737851,0.18610335,3426.9,3426.8,1.041]
[1721248738057,2.91775,3427.3,3426.8,1.041]
[1721248738258,0.18610335,3426.9,3426.8,1.041]
[1721248738496,2.91784,3427.2,3426.8,1.041]
[1721248738673,0.18610335,3426.9,3426.8,1.041]
[1721248739294,2.91784,3427.2,3426.8,1.041]
[1721248739477,0.18610335,3426.9,3426.8,1.041]
[1721248739680,2.91784,3427.2,3426.8,1.041]
[1721248740168,0.18610335,3427.1,3426.8,1.041]
[1721248740576,2.91753,3427.6,3427.0,3.3181]
[1721248740759,2.91753,3427.6,3427.2,1.041]
[1721248741366,5.8351,3427.6,3427.2,1.041]
[1721248741660,2.91737,3427.8,3427.2,1.041]
[1721248741965,2.91741,3427.7,3427.2,1.89832125]
[1721248743056,2.9172,3428.0,3427.2,4.81614125]
[1721248743305,2.91738,3427.8,3427.4,1.041]
[1721248743785,5.91723,3427.9,3427.4,1.041]
[1721248745762,2.91733,3427.8,3427.4,1.041]
[1721248745960,2.91733,3427.8,3427.2,1.041]
[1721248745961,3.800781,3427.8,3427.2,1.041]
[1721248746461,3.800781,3427.8,3427.2,3.95883]
[1721248747663,6.718171,3427.8,3427.2,3.95883]
[1721248748084,3.800781,3427.8,3427.2,3.95883]
[1721248749290,3.800781,3427.8,3427.4,1.041]
[1721248749498,2.91733,3427.8,3427.4,1.041]
[1721248750597,0.18619708,3427.7,3427.4,1.041]
[1721248750892,2.91733,3427.8,3427.4,1.041]
[1721248751093,0.18619708,3427.6,3427.4,1.041]
[1721248751388,0.18620319,3427.5,3427.4,1.041]
[1721248751593,2.91733,3427.8,3427.4,1.041]
[1721248751789,0.18619912,3427.5,3427.4,1.041]
[1721248751992,2.91733,3427.8,3427.4,1.041]
[1721248752194,0.18619912,3427.5,3427.4,1.041]
[1721248752394,2.91733,3427.8,3427.4,1.041]
[1721248752599,0.18619912,3427.5,3427.4,1.041]
[1721248752799,2.91733,3427.8,3427.4,1.041]
[1721248753092,0.18619912,3427.5,3427.4,1.041]
[1721248753295,2.91733,3427.8,3427.4,1.041]
[1721248753499,0.18619912,3427.5,3427.4,1.041]
[1721248753697,2.91733,3427.8,3427.4,1.041]
[1721248753900,0.18619912,3427.5,3427.4,1.041]
[1721248754417,2.91733,3427.8,3427.4,1.041]
[1721248754600,0.18619912,3427.5,3427.4,1.041]
[1721248754792,2.91733,3427.8,3427.4,3.3455]
[1721248754987,0.18619912,3427.5,3427.4,3.3455]
[1721248755192,2.91733,3427.8,3427.4,3.3455]
[1721248755398,0.18619912,3427.5,3427.4,3.3455]
[1721248755601,2.91733,3427.8,3427.4,3.3455]
[1721248755901,0.18619912,3427.5,3427.4,3.3455]
[1721248756074,2.91733,3427.8,3427.4,3.3455]
[1721248756277,0.18619912,3427.5,3427.4,3.3455]
[1721248756476,2.91733,3427.8,3427.4,3.3455]
[1721248756668,0.18622355,3427.5,3427.4,3.3455]
[1721248756868,2.91733,3427.8,3427.4,3.3455]
[1721248757065,0.18622355,3427.5,3427.4,3.3455]
[1721248757301,4.07474544,3427.8,3427.4,1.041]
[1721248757496,0.18622966,3427.5,3427.4,1.041]
[1721248758106,2.91742,3427.7,3427.4,1.041]
[1721248758303,0.18622966,3427.5,3427.0,2.91796]
[1721248758604,0.18622966,3427.5,3427.0,1.041]
[1721248758605,2.91775,3427.3,3427.0,1.041]
[1721248759081,0.18622763,3427.2,3427.0,1.041]
[1721248759493,5.83526,3427.5,3427.0,1.041]
[1721248759802,3.01287812,3427.4,3427.0,1.041]
[1721248759969,0.09520812,3427.3,3427.0,1.041]
[1721248760370,0.18622763,3427.2,3427.0,1.041]
[1721248760571,4.13188001,3427.5,3427.0,1.041]
[1721248760787,0.18622763,3427.1,3427.0,1.041]
[1721248760988,4.13188001,3427.5,3427.0,1.041]
[1721248761196,0.0952047,3427.4,3427.2,1.041]
[1721248761986,4.13188001,3427.5,3427.2,1.041]
[1721248762304,0.0952069,3427.4,3427.2,1.041]
[1721248762509,0.09520684,3427.3,3427.2,1.041]
[1721248763096,0.09520684,3427.4,3427.2,1.041]
[1721248764212,0.09520833,3427.3,3427.2,1.041]
[1721248764377,0.09520833,3427.4,3427.2,1.041]
[1721248764577,0.09520833,3427.3,3427.2,1.041]
[1721248764876,0.09520833,3427.4,3427.2,1.041]
[1721248765403,0.28144518,3427.3,3427.2,1.041]
[1721248766612,0.1799793,3427.3,3427.2,1.975531]
[1721248766809,0.99572519,3427.5,3427.3,2.483]
[1721248767109,4.44603491,3427.7,3427.3,2.483]
[1721248768516,4.44621249,3427.7,3427.3,2.483]
[1721248768712,4.44621249,3427.7,3427.4,1.041]
[1721248770527,4.44621249,3427.7,3427.4,1.7786361]
[1721248770823,1.52877249,3427.7,3427.4,1.7786361]
[1721248771200,2.91735,3427.8,3427.4,1.7786361]
[1721248771636,2.91735,3427.8,3427.4,1.041]
[1721248772383,1.52927534,3428.0,3427.4,1.041]
[1721248772592,2.91711,3428.1,3427.4,1.041]
[1721248772820,1.52942138,3427.9,3427.4,1.041]
[1721248773092,1.52942138,3428.0,3427.4,1.041]
[1721248773532,2.91726,3427.9,3427.4,1.041]
[1721248773740,2.91726,3427.9,3427.4,2.0704011]
[1721248774036,0.18002413,3427.8,3427.4,2.0704011]
[1721248774630,1.22349906,3427.8,3427.6,1.041]
[1721248774791,0.18002413,3427.7,3427.6,1.041]
[1721248775119,1.22349906,3427.9,3427.4,4.9880511]
[1721248775318,0.18002206,3427.7,3427.4,4.9880511]
[1721248775500,1.22349906,3427.9,3427.5,1.03888011]
[1721248775700,0.18002206,3427.6,3427.4,3.95865]
[1721248775901,1.22349906,3427.9,3427.4,3.95865]
[1721248776104,0.18002206,3427.5,3427.4,3.95865]
[1721248776302,1.22349906,3427.9,3427.4,3.95865]
[1721248776503,0.18002206,3427.5,3427.4,3.95865]
[1721248776723,1.22349906,3427.9,3427.4,4.89459]
[1721248776934,0.18002206,3427.5,3427.4,4.89459]
[1721248777116,1.22349906,3427.9,3427.4,4.89459]
[1721248777306,0.18002206,3427.5,3427.4,4.89459]
[1721248777506,1.22349906,3427.9,3427.4,4.89459]
[1721248777728,0.18002206,3427.5,3427.4,4.89459]
[1721248777917,1.22349906,3427.9,3427.4,4.89459]
[1721248778424,0.18002206,3427.8,3427.4,1.041]
[1721248778631,5.28033,3427.7,3427.0,5.30027]
[1721248778828,2.91758,3427.5,3426.9,1.041]
[1721248779215,2.91775,3427.3,3426.9,1.041]
[1721248779597,0.18004447,3427.2,3426.9,1.041]
[1721248779926,2.91775,3427.3,3426.9,1.041]
[1721248780427,0.18004447,3427.2,3426.9,1.041]
[1721248780624,2.91775,3427.3,3426.9,1.041]
[1721248780924,0.18004447,3427.2,3426.9,1.041]
[1721248781131,0.18004447,3427.2,3426.6,2.91827]
[1721248781430,0.18004447,3427.1,3426.8,1.041]
[1721248781629,2.91775,3427.3,3426.8,1.041]
[1721248781805,0.1799854,3427.0,3426.8,1.041]
[1721248782133,4.14124906,3427.3,3426.8,1.50137303]
[1721248782333,0.1799854,3426.9,3426.8,1.041]
[1721248782500,4.14124906,3427.3,3426.8,1.041]
[1721248782704,0.1799854,3426.9,3426.7,2.91825]
[1721248783028,2.91775,3427.3,3426.9,2.3304]
[1721248783193,2.91775,3427.3,3427.1,1.041]
[1721248783728,20.0,3433.5,3427.1,1.37814]
[1721248783729,1.22349906,3427.6,3427.1,1.37814]
[1721248784027,5.28036,3427.7,3427.1,1.37814]
[1721248784028,1.22349906,3427.7,3427.3,3.95867]
[1721248784210,1.22349906,3427.9,3427.5,1.041]
[1721248784397,1.22349906,3427.9,3427.4,2.91765]
[1721248784398,8.53349906,3428.0,3427.7,1.041]
[1721248784998,7.31,3428.0,3427.7,1.041]
[1721248786121,7.31,3428.0,3427.6,0.687632]
[1721248786699,11.45064906,3428.0,3427.6,0.687632]
[1721248787626,10.22715,3428.0,3427.6,0.687632]
[1721248787932,11.45064906,3428.0,3427.6,0.687632]
[1721248788519,10.22715,3428.0,3427.6,0.687632]
[1721248788833,2.91715,3428.0,3427.6,0.687632]
[1721248791118,2.91715,3428.0,3427.7,0.53545619]
[1721248794353,2.91715,3428.0,3427.7,1.57645619]
[1721248795352,0.18005058,3427.9,3427.7,1.57645619]
[1721248800260,1.22349906,3428.2,3427.7,1.57645619]
[1721248800556,3.09720744,3428.1,3427.7,1.041]
[1721248801163,4.3207065,3428.1,3427.7,1.041]
[1721248801727,4.3207065,3428.1,3427.5,3.95856]
[1721248801951,6.7228065,3428.1,3427.5,1.041]
[1721248802143,6.7228065,3428.1,3427.4,0.01]
[1721248802466,7.65207476,3428.1,3427.4,0.01]
[1721248803267,2.91725,3427.9,3427.4,1.051]
[1721248803568,0.18009337,3427.8,3427.4,1.051]
[1721248804767,8.11114,3427.5,3427.4,0.01]
[1721248804954,9.16671324,3427.5,3427.4,0.01]
[1721248805158,10.38777606,3427.5,3427.4,0.01]
[1721248805465,14.83425996,3427.5,3427.4,0.01]
[1721248805832,13.30534606,3427.5,3427.4,0.01]
[1721248806032,14.25082001,3427.5,3427.4,0.01]
[1721248806233,14.2508276,3427.5,3427.4,0.01]
[1721248806668,13.2098276,3427.5,3427.4,0.01]
[1721248806832,14.2508276,3427.5,3427.4,0.01]
[1721248807936,9.34677606,3427.5,3427.4,0.01]
[1721248808156,6.01520282,3427.5,3427.4,0.01]
[1721248810674,3.09763282,3427.5,3427.4,0.01]
[1721248813374,0.18006282,3427.5,3427.4,0.01]
[1721248813734,2.9175,3427.6,3427.4,0.01]
[1721248813939,0.17979593,3427.5,3427.4,0.01]
[1721248814140,0.17979593,3427.5,3427.4,0.34055]
[1721248815146,0.17979593,3427.5,3427.4,0.01]
[1721248818701,3.09736593,3427.5,3427.4,0.01]
[1721248828091,6.01493593,3427.5,3427.4,0.01]
[1721248836568,8.49143593,3427.5,3427.4,0.01]
[1721248837270,9.7139496,3427.5,3427.4,0.01]
[1721248837489,8.49143593,3427.5,3427.4,0.01]
[1721248838508,9.7139496,3427.5,3427.4,0.01]
[1721248839012,8.49143593,3427.5,3427.4,0.01]
[1721248839386,9.7139496,3427.5,3427.4,0.01]
[1721248839625,8.49143593,3427.5,3427.4,0.01]
[1721248839915,9.7139496,3427.5,3427.4,0.01]
[1721248845535,7.2374496,3427.5,3427.4,0.01]
[1721248845753,4.3198796,3427.5,3427.4,0.01]
[1721248845900,1.4023096,3427.5,3427.4,0.01]
[1721248846098,0.9023096,3427.5,3427.4,0.34539]
[1721248846413,1.11036726,3427.5,3427.4,0.34539]
[1721248846899,0.20805766,3427.5,3427.4,0.34539]
[1721248847702,1.53128118,3428.1,3427.5,2.91756]
[1721248847904,0.20805155,3428.0,3427.6,1.041]
[1721248848744,0.20810655,3427.9,3427.6,1.041]
[1721248849101,0.20810655,3427.8,3427.6,1.041]
[1721248849302,0.20810655,3427.8,3427.7,0.7486359]
[1721248849504,2.91707,3428.1,3427.7,0.7486359]
[1721248849754,0.20810655,3427.8,3427.7,0.7486359]
[1721248850340,4.44819773,3428.1,3427.7,0.7486359]
[1721248850542,4.44816191,3428.1,3427.7,0.7486359]
[1721248850743,0.20810655,3428.0,3427.7,0.7486359]
[1721248851056,0.20810655,3428.0,3427.8,0.20544649]
[1721248854147,1.43305196,3428.0,3427.8,0.20544649]
[1721248856977,1.43305196,3428.0,3427.5,3.182399]
[1721248857192,4.35020196,3428.0,3427.5,3.182399]
[1721248869404,3.12525655,3428.0,3427.5,3.182399]
[1721248869592,4.35020196,3428.0,3427.5,3.182399]
[1721248869994,3.12525655,3428.0,3427.5,3.182399]
[1721248870904,0.20810655,3428.0,3427.6,0.55885932]
[1721248871100,0.20810655,3428.0,3427.6,4.51733932]
[1721248873502,0.20810655,3428.0,3427.8,1.041]
[1721248874003,1.22494541,3428.2,3427.8,3.4256]
[1721248874173,0.20832244,3427.9,3427.8,3.4256]
[1721248874373,1.22494541,3428.2,3427.8,4.43401683]
[1721248874572,0.20832244,3428.1,3427.8,4.43401683]
[1721248874776,1.22494541,3428.2,3427.8,4.43401683]
[1721248875003,0.20832244,3428.1,3427.8,4.43401683]
[1721248877307,1.43326785,3428.1,3427.8,4.43401683]
[1721248877479,1.43326785,3428.1,3427.9,1.08277561]
[1721248877683,1.43326785,3428.1,3427.6,3.85595932]
[1721248877892,1.43326785,3428.1,3427.6,6.77344932]
[1721248878808,1.43326785,3428.1,3427.6,6.77339932]
[1721248879508,0.20832244,3428.1,3427.6,6.77339932]
[1721248880472,0.20832244,3428.1,3427.6,9.69081932]
[1721248880674,0.20832244,3428.1,3427.7,1.00362093]
[1721248881879,0.20832244,3428.1,3427.7,3.92099093]
[1721248883519,1.43326785,3428.1,3427.7,3.92099093]
[1721248883824,0.20832244,3428.1,3427.7,3.92099093]
[1721248884416,1.43326785,3428.1,3427.7,3.92099093]
[1721248884925,1.43326785,3428.1,3427.8,1.06943703]
[1721248885843,1.43326785,3428.1,3427.9,2.91717]
[1721248885844,0.20832244,3428.1,3427.9,2.91717]
[1721248886128,0.20832244,3428.1,3428.0,8.0951]
[1721248886433,1.22494541,3428.7,3428.4,2.91677]
[1721248886731,2.57174874,3428.8,3428.4,3.500112]
[1721248886732,1.041,3428.8,3428.4,3.500112]
[1721248886895,1.041,3428.8,3428.5,2.91671]
[1721248888327,1.041,3428.8,3428.4,0.583372]
[1721248888548,1.041,3428.8,3428.4,2.91675]
[1721248888691,1.041,3428.8,3428.5,2.9167]
[1721248890628,1.041,3428.8,3428.6,2.91662]
[1721248890832,1.041,3429.0,3428.6,2.91662]
[1721248892217,1.041,3429.0,3428.7,2.91654]
[1721248892428,1.041,3429.0,3428.8,0.825746]
[1721248893746,1.041,3429.0,3428.8,3.742216]
[1721248897510,1.041,3429.0,3428.8,3.742136]
[1721248899514,1.041,3429.0,3428.8,0.825746]
[1721248900417,0.20171835,3428.9,3428.8,0.825746]
[1721248900622,0.20171835,3428.9,3428.6,2.91659]
[1721248900929,0.20171835,3428.9,3428.7,2.91655]
[1721248908911,1.041,3429.2,3428.7,2.91655]
[1721248909110,0.20174916,3428.8,3428.7,2.91655]
[1721248909314,0.55,3429.1,3428.7,5.83305]
[1721248909643,0.55,3429.1,3428.7,6.416285]
[1721248909852,0.20175739,3429.0,3428.7,6.416285]
[1721248911765,1.24275739,3429.0,3428.5,5.83331]
[1721248911965,1.24275739,3429.0,3428.5,2.91664]
[1721248912168,1.24275739,3429.0,3428.7,2.91655]
[1721248913381,1.24275739,3429.0,3428.5,2.91664]
[1721248913382,1.041,3428.8,3428.5,2.91664]
[1721248913531,3.4614,3428.8,3428.5,2.91664]
[1721248913729,0.20179647,3428.7,3428.5,2.91664]
[1721248914252,0.20179647,3428.6,3428.5,2.91664]
[1721248914630,3.4614,3428.8,3428.5,2.91664]
[1721248914831,0.20179647,3428.7,3428.5,2.91664]
[1721248915024,3.4614,3428.8,3428.5,2.91664]
[1721248915264,0.20179647,3428.7,3428.5,2.91664]
[1721248915633,3.4614,3428.8,3428.5,2.91664]
[1721248915966,0.20179647,3428.6,3428.5,2.91664]
[1721248916174,3.4614,3428.8,3428.5,2.91664]
[1721248916361,0.20179647,3428.6,3428.5,2.91664]
[1721248916966,3.4614,3428.8,3428.5,2.91664]
[1721248917174,0.20179647,3428.6,3428.5,2.91664]
[1721248917335,3.4614,3428.8,3428.5,3.36613058]
[1721248917526,0.20179647,3428.6,3428.5,3.36613058]
[1721248917730,3.4614,3428.8,3428.5,3.36613058]
[1721248917930,0.20179647,3428.6,3428.5,2.91664]
[1721248918131,3.4614,3428.8,3428.5,2.91664]
[1721248918369,0.20179647,3428.6,3428.5,2.91664]
[1721248918889,1.041,3428.8,3428.5,2.91664]
[1721248919034,0.20179647,3428.6,3428.5,2.91664]
[1721248919230,1.041,3429.0,3428.5,2.91664]
[1721248919426,0.75179647,3428.9,3428.5,2.91664]
[1721248924190,0.75179647,3428.9,3428.5,5.8333]
[1721248925042,0.75179647,3428.9,3428.6,2.91663]
[1721248925236,0.75179647,3428.9,3428.6,3.499957]
[1721248926236,0.75179647,3428.9,3428.3,2.91683]
[1721248926237,1.041,3428.8,3428.3,2.91683]
[1721248926461,0.55,3428.7,3428.3,2.91683]
[1721248926659,0.75179647,3428.7,3428.3,2.91683]
[1721248927785,2.4014,3428.3,3427.7,2.91733]
[1721248928074,1.041,3427.9,3427.4,2.92765]
[1721248928285,1.041,3427.9,3427.4,0.01]
[1721248928785,0.75172244,3427.8,3427.4,0.01]
[1721248931906,1.041,3427.7,3427.4,0.01]
[1721248932062,0.75172244,3427.8,3427.4,0.01]
[1721248932063,1.041,3427.5,3427.4,0.01]
[1721248932459,1.79257441,3427.5,3427.4,0.01]
[1721248943404,0.75157441,3427.5,3427.4,0.01]
[1721248944606,1.79257441,3427.5,3427.4,0.01]
[1721248954594,8.62829985,3427.5,3427.4,0.01]
[1721248957295,7.62771441,3427.5,3427.4,0.01]
[1721248960075,9.88941441,3427.5,3427.4,0.01]
[1721248960297,20.25151384,3427.5,3427.4,0.01]
[1721248960496,19.67123786,3427.5,3427.4,0.01]
[1721248960704,21.50358917,3427.5,3427.4,0.01]
[1721248960905,23.34334917,3427.5,3427.4,0.01]
[1721248961511,23.34382423,3427.5,3427.4,0.01]
[1721248961826,23.34314971,3427.5,3427.4,0.01]
[1721248962485,21.51106521,3427.5,3427.4,0.01]
[1721248963276,20.56431441,3427.5,3427.4,0.01]
[1721248968032,17.64674441,3427.5,3427.4,0.01]
[1721248968250,16.78224501,3427.5,3427.4,0.01]
[1721248968724,15.25698441,3427.5,3427.4,0.01]
[1721248969384,15.80698441,3427.5,3427.4,0.01]
[1721248971309,17.33254404,3427.5,3427.4,0.01]
[1721248971513,15.80698441,3427.5,3427.4,0.01]
[1721248972425,14.41497404,3427.5,3427.4,0.01]
[1721248973210,16.14821244,3427.5,3427.4,0.01]
[1721248974230,16.14907127,3427.5,3427.4,0.01]
[1721248975805,19.06664127,3427.5,3427.4,0.01]
[1721248976290,16.14907127,3427.5,3427.4,0.01]
[1721248977391,19.0666335,3427.5,3427.4,0.01]
[1721248977987,16.1490635,3427.5,3427.4,0.01]
[1721248979338,19.0666335,3427.5,3427.4,0.01]
[1721248979532,16.1490635,3427.5,3427.4,0.01]
[1721248979848,19.0666335,3427.5,3427.4,0.01]
[1721248980662,19.06674725,3427.5,3427.4,0.01]
[1721248981172,19.06674764,3427.5,3427.4,0.01]
[1721248981564,19.06681473,3427.5,3427.4,0.01]
[1721248983274,19.06693788,3427.5,3427.4,0.01]
[1721248985651,17.54022281,3427.5,3427.4,0.01]
[1721248986350,19.06713973,3427.5,3427.4,0.01]
[1721248987235,17.33390133,3427.5,3427.4,0.01]
[1721248989388,15.80698441,3427.5,3427.4,0.01]
[1721248990474,16.75359235,3427.5,3427.4,0.01]
[1721248990775,15.80698441,3427.5,3427.4,0.01]
[1721248991372,16.75360485,3427.5,3427.4,0.01]
[1721248992555,15.80698441,3427.5,3427.4,0.01]
[1721248992755,16.75360561,3427.5,3427.4,0.01]
[1721248993475,18.58768373,3427.5,3427.4,0.01]
[1721248995782,15.80698441,3427.5,3427.4,0.01]
[1721248995976,18.58877061,3427.5,3427.4,0.01]
[1721248996486,16.75359717,3427.5,3427.4,0.01]
[1721248997258,16.25359717,3427.5,3427.4,0.01]
[1721248997464,16.45446388,3427.5,3427.4,0.01]
[1721248999108,16.45446848,3427.5,3427.4,0.01]
[1721248999466,16.45446845,3427.5,3427.4,0.01]
[1721249000079,19.37203845,3427.5,3427.4,0.01]
[1721249000424,2.91827,3426.7,3425.6,2.3403]
[1721249000562,1.041,3426.0,3425.6,2.3403]
[1721249001302,0.19413109,3425.9,3425.6,2.3403]
[1721249001525,0.19413109,3425.9,3425.8,2.3403]
[1721249001667,1.041,3426.0,3425.8,2.3403]
[1721249002101,0.19413109,3425.9,3425.8,2.3403]
[1721249002810,2.91882,3426.1,3425.8,2.3403]
[1721249003011,0.19413109,3425.9,3425.8,2.3403]
[1721249003197,4.70407109,3425.9,3425.8,2.3403]
[1721249003510,7.62301109,3425.9,3425.8,2.3403]
[1721249006075,3.66307109,3425.9,3425.8,2.57433]
[1721249008167,3.66307109,3425.9,3425.8,2.3403]
[1721249012005,0.74413109,3425.9,3425.8,2.3403]
[1721249013506,0.74413109,3425.9,3425.2,2.4615]
[1721249013854,1.041,3425.5,3425.2,2.4615]
[1721249014152,0.55,3425.4,3425.2,2.4615]
[1721249014302,0.74379961,3425.4,3425.2,2.70765]
[1721249016951,3.66316961,3425.4,3425.2,2.70765]
[1721249018954,0.74379961,3425.4,3425.2,2.70765]
[1721249021129,0.74379961,3425.4,3424.6,2.4615]
[1721249021316,1.041,3425.1,3424.6,5.38148]
[1721249021515,1.041,3425.3,3424.9,2.2659]
[1721249021710,0.19370282,3425.0,3424.9,2.2659]
[1721249022050,0.19370282,3425.0,3424.9,5.18569]
[1721249022224,0.55,3425.4,3424.9,5.18569]
[1721249022538,0.19364926,3425.0,3424.9,5.18569]
[1721249022863,0.19364926,3425.3,3425.0,2.9197]
[1721249023142,0.55,3425.2,3425.1,0.810547]
[1721249023328,0.19364926,3425.2,3425.1,0.810547]
[1721249023531,0.74364926,3425.2,3425.1,5.18552]
[1721249023851,0.55,3425.2,3425.1,5.18552]
[1721249024138,0.74365338,3425.2,3425.1,5.18552]
[1721249024313,0.19365338,3425.2,3425.1,5.18552]
[1721249024712,3.0,3425.8,3425.2,2.91946]
[1721249024913,0.55,3425.7,3425.3,3.729878]
[1721249025125,1.041,3426.1,3425.5,2.91923]
[1721249025430,3.0,3426.0,3425.6,5.18503]
[1721249025625,3.0,3426.2,3425.6,5.18503]
[1721249025807,3.0,3426.2,3425.7,0.810426]
[1721249026641,0.55,3426.1,3425.7,3.729526]
[1721249027751,2.91847,3426.5,3425.7,3.729526]
[1721249027752,4.14322174,3426.6,3425.9,2.91889]
[1721249027908,1.041,3426.4,3425.9,2.91889]
[1721249028238,1.041,3426.4,3426.0,0.6648416]
[1721249029445,0.55,3426.3,3426.0,0.6648416]
[1721249030665,0.55,3426.3,3426.1,2.4433]
[1721249034147,0.05,3426.3,3426.1,2.4433]
[1721249034348,1.041,3426.4,3426.1,2.4433]
[1721249034512,0.541,3426.4,3426.1,2.4433]
[1721249035419,0.19384286,3426.3,3426.1,2.4433]
[1721249035619,0.19384286,3426.3,3426.1,2.89265177]
[1721249037568,0.19384286,3426.3,3426.1,2.4433]
[1721249040456,0.19384286,3426.3,3426.1,5.36206]
[1721249040673,0.19384286,3426.3,3426.2,2.91868]
[1721249040830,3.0,3426.7,3426.3,2.91855]
[1721249044868,5.26587174,3426.8,3426.3,2.91855]
[1721249045078,4.22487174,3426.8,3426.4,0.828061]
[1721249046555,5.26587174,3426.8,3426.4,0.828061]
[1721249046781,5.26587174,3426.8,3426.5,2.4954]
[1721249047430,4.041,3426.8,3426.4,0.828061]
[1721249047633,4.041,3426.8,3426.3,5.41395]
[1721249048796,4.041,3426.8,3426.3,8.33249]
[1721249048957,4.041,3426.8,3426.3,5.41394]
[1721249050149,4.041,3426.8,3426.4,2.9185]
[1721249050357,0.19398699,3426.7,3426.4,2.9185]
[1721249050695,4.041,3426.8,3426.4,2.9185]
[1721249050862,0.19398699,3426.6,3426.4,2.9185]
[1721249051062,4.041,3426.8,3426.4,2.9185]
[1721249051262,0.19398699,3426.5,3426.4,2.9185]
[1721249051482,4.041,3426.8,3426.4,3.751744]
[1721249051689,4.041,3426.8,3426.4,2.9185]
[1721249051690,0.19398699,3426.5,3426.4,2.9185]
[1721249051870,4.041,3426.8,3426.4,2.9185]
[1721249052502,0.19398699,3426.7,3426.5,2.91842]
[1721249052657,0.19398699,3426.7,3426.6,2.91834]
[1721249052858,4.041,3427.0,3426.5,2.91842]
[1721249052859,4.041,3427.0,3426.7,2.91822]
[1721249059485,3.0,3427.0,3426.7,2.91822]
[1721249059663,3.0,3427.0,3426.7,2.91818]
[1721249060706,3.0,3427.0,3426.7,5.83638]
[1721249061017,7.31,3427.1,3426.7,5.83638]
[1721249062576,1.041,3427.2,3426.7,5.83638]
[1721249062789,10.7877,3427.4,3426.8,2.91816]
[1721249063079,10.7877,3427.4,3426.7,5.794218]
[1721249063080,1.041,3427.4,3427.0,2.91798]
[1721249063925,3.3702,3427.6,3427.0,2.91798]
[1721249064274,3.0,3427.5,3427.0,2.91798]
[1721249064517,3.0,3427.5,3427.0,3.7891898]
[1721249065379,0.19413932,3427.4,3427.0,3.7891898]
[1721249066087,0.19413932,3427.4,3427.1,2.91785]
[1721249067910,4.041,3427.6,3427.1,2.91785]
[1721249068112,0.19413932,3427.3,3427.1,2.91785]
[1721249068276,4.041,3427.6,3427.2,0.67070398]
[1721249068477,0.19413932,3427.2,3427.1,2.91785]
[1721249068716,4.041,3427.6,3427.1,2.91785]
[1721249068910,0.19413932,3427.2,3427.1,2.91785]
[1721249069137,4.041,3427.6,3427.1,2.91785]
[1721249069280,0.19413932,3427.2,3427.1,2.91785]
[1721249069480,4.041,3427.6,3427.1,3.58855398]
[1721249069684,0.19413932,3427.2,3427.1,3.58855398]
[1721249069882,4.041,3427.6,3427.1,3.58855398]
[1721249070083,0.19413932,3427.2,3427.1,2.91785]
[1721249070321,4.041,3427.6,3427.1,2.91785]
[1721249070562,3.65187174,3427.8,3427.3,2.91773]
[1721249070563,2.26587174,3427.8,3427.3,2.91773]
[1721249070736,3.80077743,3428.0,3427.4,2.91764]
[1721249070737,3.3145,3428.0,3427.4,2.91764]
[1721249070906,3.3145,3428.0,3427.4,3.734246]
[1721249071107,1.041,3428.0,3427.4,3.734216]
[1721249071305,1.041,3428.2,3427.6,2.91744]
[1721249071549,1.041,3428.2,3427.6,5.24803]
[1721249072041,4.041,3428.2,3427.6,5.24803]
[1721249072269,1.22487174,3428.4,3427.8,2.91731]
[1721249072611,1.22487174,3428.6,3428.0,2.91709]